bitfinex-derivatives/quotes_SOLF0:USTF0_20240923
["timestamp","ask_amount","ask_price","bid_price","bid_amount"]
[1727134454345,1.3143,144.77,144.71,9.58]
[1727134454541,9.58,144.75,144.71,9.58]
[1727134455143,1.4373,144.83,144.71,9.58]
[1727134455342,9.58,144.76,144.71,9.58]
[1727134455835,9.58,144.76,144.74,3.4544]
[1727134456331,9.58,144.75,144.74,3.4544]
[1727134456542,9.58,144.75,144.73,3.4548]
[1727134457942,3.4546,144.74,144.7,9.58]
[1727134458139,3.4546,144.74,144.65,4.75259874]
[1727134458140,13.0346,144.74,144.69,9.58]
[1727134458541,13.0346,144.74,144.72,3.4551]
[1727134458744,9.58,144.74,144.72,3.4551]
[1727134460244,9.58,144.75,144.73,3.4548]
[1727134460947,9.58,144.75,144.74,3.4546]
[1727134461144,3.4542,144.76,144.74,3.4546]
[1727134461352,13.0342,144.76,144.74,3.4546]
[1727134465247,3.4544,144.75,144.71,9.58]
[1727134465647,3.4544,144.75,144.7,9.58]
[1727134465648,13.0344,144.75,144.7,9.58]
[1727134466249,13.0344,144.75,144.72,3.4549]
[1727134466556,9.58,144.73,144.68,9.58]
[1727134468551,9.58,144.73,144.71,3.4552]
[1727134470256,3.4546,144.74,144.71,3.4552]
[1727134470459,13.06403425,144.75,144.71,9.58]
[1727134470663,9.58,144.75,144.71,9.58]
[1727134471157,13.01760608,144.75,144.71,9.58]
[1727134471562,16.47200608,144.75,144.72,3.4549]
[1727134472459,16.47200608,144.75,144.73,3.4548]
[1727134473161,13.0344,144.75,144.73,3.4548]
[1727134473563,16.54391095,144.75,144.73,3.4548]
[1727134475471,13.0346,144.74,144.69,9.58]
[1727134476365,13.0346,144.74,144.71,3.4552]
[1727134490180,3.4549,144.73,144.7,3.4554]
[1727134490390,9.58,144.73,144.7,3.4554]
[1727134490689,9.58,144.72,144.7,3.4554]
[1727134491384,12.9932976,144.72,144.7,3.4554]
[1727134491786,16.4483976,144.72,144.7,3.4554]
[1727134494483,6.8683976,144.72,144.7,3.4554]
[1727134494684,3.455,144.73,144.7,3.4554]
[1727134494889,9.58,144.72,144.7,3.4554]
[1727134496391,9.58,144.72,144.71,3.4553]
[1727134498084,12.34412767,144.76,144.72,3.455]
[1727134498283,9.58,144.75,144.7,9.58]
[1727134498589,9.58,144.75,144.73,3.4548]
[1727134499291,3.4542,144.76,144.73,3.4548]
[1727134499496,9.58,144.75,144.73,3.4548]
[1727134500086,9.58,144.74,144.64,92.31255387]
[1727134500284,9.58,144.72,144.67,9.58]
[1727134500489,9.58,144.71,144.66,9.58]
[1727134501182,9.58,144.71,144.69,3.4556]
[1727134501692,9.58,144.72,144.66,9.58]
[1727134502192,9.58,144.72,144.7,3.4554]
[1727134502387,12.35563795,144.76,144.67,9.58]
[1727134502591,9.58,144.73,144.67,9.58]
[1727134502793,9.58,144.73,144.71,3.4553]
[1727134503592,3.4544,144.75,144.72,3.4551]
[1727134503885,9.58,144.74,144.72,3.4551]
[1727134504090,3.4544,144.75,144.71,3.4552]
[1727134504300,9.58,144.74,144.7,9.58]
[1727134504693,12.37380788,144.76,144.72,9.58]
[1727134504892,10.9152,144.77,144.72,9.58]
[1727134505288,23.28900788,144.77,144.72,9.58]
[1727134505490,10.9152,144.77,144.72,9.58]
[1727134505890,26.74171173,144.77,144.74,3.4545]
[1727134506090,4.7891,144.77,144.74,3.4545]
[1727134506298,9.58,144.77,144.72,9.58]
[1727134506795,9.58,144.78,144.73,9.58]
[1727134508592,3.4535,144.79,144.67,3.38391136]
[1727134508593,15.81862128,144.81,144.78,3.4535]
[1727134508794,9.58,144.79,144.78,3.4535]
[1727134510093,4.8869,144.82,144.78,3.4535]
[1727134510397,9.58,144.8,144.78,3.4535]
[1727134511295,27.3762694,144.83,144.75,1.3464]
[1727134511502,9.58,144.8,144.75,1.3464]
[1727134511898,9.58,144.8,144.77,3.4537]
[1727134512495,3.453,144.81,144.77,3.4537]
[1727134512696,9.58,144.79,144.77,3.4537]
[1727134513204,9.58,144.78,144.77,3.4537]
[1727134513509,9.58,144.78,144.76,3.4541]
[1727134513800,9.58,144.76,144.74,3.4545]
[1727134514498,9.58,144.76,144.75,3.4544]
[1727134515198,1.4315,144.84,144.75,9.58]
[1727134515403,9.58,144.81,144.77,9.58]
[1727134516400,9.58,144.79,144.74,9.58]
[1727134516902,9.58,144.79,144.78,3.4535]
[1727134518502,9.58,144.8,144.79,3.4533]
[1727134524108,9.58,144.8,144.75,9.58]
[1727134524912,9.58,144.8,144.79,3.4534]
[1727134525515,1.4412,144.85,144.79,9.58]
[1727134525702,1.4412,144.85,144.8,9.58]
[1727134525905,11.0212,144.85,144.8,9.58]
[1727134527410,11.0212,144.85,144.82,3.4525]
[1727134528211,11.0212,144.85,144.83,3.4524]
[1727134528607,3.53451853,144.86,144.85,3.452]
[1727134528808,9.58,144.88,144.84,9.58]
[1727134529210,9.58,144.88,144.86,3.4515]
[1727134529414,9.58,144.88,144.84,9.58]
[1727134530513,9.58,144.88,144.82,1.3623]
[1727134530714,9.58,144.85,144.81,11.0016]
[1727134531213,9.58,144.83,144.78,9.58]
[1727134531709,9.58,144.83,144.79,9.58]
[1727134531911,9.58,144.84,144.79,9.58]
[1727134532216,9.58,144.84,144.8,9.58]
[1727134532515,9.58,144.84,144.83,3.4524]
[1727134536413,1.3793,144.87,144.83,3.4524]
[1727134536614,9.58,144.85,144.84,3.4522]
[1727134538416,9.58,144.85,144.83,3.4523]
[1727134538613,9.58,144.84,144.78,81.17530855]
[1727134538815,9.58,144.84,144.78,90.75530855]
[1727134539612,9.58,144.84,144.79,9.58]
[1727134539814,9.58,144.84,144.82,3.4526]
[1727134545115,9.58,144.85,144.83,3.4524]
[1727134545317,9.58,144.86,144.81,9.58]
[1727134547128,9.58,144.88,144.85,3.4518]
[1727134547425,9.58,144.88,144.86,3.4516]
[1727134548328,3.4512,144.89,144.86,3.4516]
[1727134548329,9.58,144.89,144.86,3.4516]
[1727134548721,9.58,144.88,144.86,3.4516]
[1727134548922,9.58,144.88,144.85,3.4519]
[1727134549325,9.58,144.87,144.85,3.4519]
[1727134549727,9.58,144.86,144.84,3.4521]
[1727134549926,9.58,144.85,144.78,81.17530855]
[1727134550130,9.58,144.85,144.79,9.58]
[1727134550633,13.032,144.85,144.79,9.58]
[1727134551834,9.58,144.84,144.79,9.58]
[1727134552228,9.58,144.83,144.78,81.17530855]
[1727134552437,9.58,144.8,144.77,1.3623]
[1727134552939,9.58,144.8,144.79,3.4534]
[1727134553137,13.0328,144.82,144.79,3.4534]
[1727134553340,13.0328,144.82,144.77,10.9423]
[1727134553341,9.58,144.82,144.77,10.9423]
[1727134553544,9.58,144.83,144.8,3.453]
[1727134556435,9.58,144.82,144.8,3.453]
[1727134562750,3.4521,144.85,144.79,9.58]
[1727134563042,9.58,144.84,144.79,9.58]
[1727134563248,13.0324,144.83,144.8,3.453]
[1727134564262,9.58,144.82,144.77,10.9423]
[1727134564846,9.58,144.83,144.8,3.4531]
[1727134565047,1.4298,144.9,144.8,9.58]
[1727134565249,1.4298,144.9,144.81,9.58]
[1727134565449,13.0316,144.87,144.81,9.58]
[1727134566350,13.0316,144.87,144.77,1.3623]
[1727134566556,13.0316,144.87,144.82,9.58]
[1727134566858,13.0314,144.88,144.84,3.452]
[1727134567259,9.58,144.88,144.83,9.58]
[1727134567550,9.58,144.88,144.86,3.4517]
[1727134572750,3.4511,144.89,144.86,3.4517]
[1727134572955,9.58,144.88,144.86,3.4517]
[1727134573462,13.0313,144.88,144.85,3.4519]
[1727134573663,3.4513,144.88,144.85,3.4519]
[1727134573857,13.0313,144.88,144.85,3.4519]
[1727134578274,1.3813,144.92,144.84,9.58]
[1727134578459,9.58,144.92,144.87,9.58]
[1727134578665,9.58,144.93,144.88,9.58]
[1727134578868,9.58,144.93,144.9,3.4507]
[1727134578869,13.0302,144.93,144.9,3.4507]
[1727134579365,9.58,144.93,144.9,3.4507]
[1727134581170,13.0301,144.93,144.9,3.4507]
[1727134581363,9.58,144.93,144.9,3.4507]
[1727134583367,13.0298,144.95,144.9,9.58]
[1727134584175,9.58,144.93,144.86,1.4393]
[1727134584375,9.58,144.93,144.87,9.58]
[1727134584771,13.0302,144.93,144.89,3.4509]
[1727134585170,3.4501,144.94,144.9,3.4506]
[1727134585373,9.58,144.92,144.9,3.4506]
[1727134587677,9.58,144.95,144.9,9.58]
[1727134588772,13.0296,144.95,144.92,3.4502]
[1727134589175,9.58,144.94,144.89,9.58]
[1727134589375,9.58,144.93,144.89,9.58]
[1727134589577,13.0303,144.93,144.89,13.0309]
[1727134589976,13.0303,144.93,144.9,3.4507]
[1727134592385,9.58,144.91,144.86,1.4393]
[1727134592587,9.58,144.9,144.86,1.4393]
[1727134594090,9.58,144.91,144.88,3.4511]
[1727134597486,1.4334,144.97,144.87,9.58]
[1727134597682,9.58,144.93,144.87,9.58]
[1727134598395,13.0301,144.93,144.9,3.4506]
[1727134599994,9.58,144.93,144.9,3.4506]
[1727134600195,1.4334,144.97,144.9,9.58]
[1727134600398,9.58,144.95,144.9,9.58]
[1727134600589,9.58,144.95,144.92,3.4501]
[1727134601888,13.0296,144.95,144.92,3.4501]
[1727134602701,9.58,144.94,144.92,3.4501]
[1727134603589,3.4496,144.95,144.92,3.4501]
[1727134603791,13.0296,144.95,144.92,3.4501]
[1727134608199,9.58,144.95,144.93,3.45]
[1727134609204,13.0296,144.95,144.92,3.4502]
[1727134610296,3.4499,144.94,144.91,3.4504]
[1727134610702,9.58,144.93,144.87,9.58]
[1727134611294,9.58,144.91,144.87,9.58]
[1727134611892,9.58,144.91,144.88,3.4512]
[1727134613899,9.58,144.91,144.86,11.0193]
[1727134614307,3.4509,144.9,144.87,3.4514]
[1727134614703,9.58,144.91,144.86,11.0193]
[1727134615504,1.4334,144.97,144.9,9.58]
[1727134615713,9.58,144.94,144.9,9.58]
[1727134616008,9.58,144.94,144.91,3.4505]
[1727134621216,9.58,144.93,144.88,9.58]
[1727134621615,9.58,144.93,144.9,3.4507]
[1727134621915,9.58,144.93,144.88,9.58]
[1727134622108,9.58,144.93,144.89,3.4509]
[1727134622510,9.58,144.92,144.86,11.0193]
[1727134622706,9.58,144.89,144.85,1.4337]
[1727134623019,9.58,144.92,144.86,9.58]
[1727134623514,13.0305,144.92,144.88,3.451]
[1727134623909,9.58,144.9,144.85,1.4337]
[1727134624216,9.58,144.89,144.85,1.4337]
[1727134624810,9.58,144.89,144.86,3.4517]
[1727134625113,9.58,144.89,144.85,1.4337]
[1727134625518,13.0311,144.89,144.85,1.4337]
[1727134626111,9.58,144.9,144.86,9.58]
[1727134626514,9.58,144.89,144.86,3.4516]
[1727134627219,13.031,144.89,144.85,3.4519]
[1727134627412,9.58,144.88,144.85,3.4519]
[1727134628814,13.0315,144.87,144.83,3.4523]
[1727134629015,13.0315,144.87,144.82,9.58]
[1727134629316,9.58,144.87,144.82,9.58]
[1727134629618,9.58,144.89,144.85,9.58]
[1727134630314,9.58,144.89,144.85,13.0318]
[1727134630315,13.031,144.89,144.85,13.0318]
[1727134631616,9.58,144.88,144.85,3.4518]
[1727134631811,9.58,144.87,144.82,10.9846]
[1727134632709,13.0316,144.87,144.83,3.4523]
[1727134632918,13.0316,144.87,144.82,10.9846]
[1727134633822,13.0316,144.87,144.84,3.4522]
[1727134635424,13.0316,144.87,144.82,9.58]
[1727134635425,9.58,144.87,144.82,9.58]
[1727134635921,9.58,144.87,144.83,3.4524]
[1727134636120,13.0316,144.87,144.83,3.4524]
[1727134636514,13.0316,144.87,144.84,3.4522]
[1727134637718,9.58,144.86,144.83,3.4524]
[1727134639424,9.58,144.86,144.82,3.4526]
[1727134639619,4.1119,144.9,144.82,3.4526]
[1727134639620,9.58,144.83,144.82,3.4526]
[1727134640028,9.58,144.84,144.82,3.4526]
[1727134640528,9.58,144.86,144.81,9.58]
[1727134641523,9.58,144.88,144.83,9.58]
[1727134641730,9.58,144.88,144.84,9.58]
[1727134642029,9.58,144.89,144.85,9.58]
[1727134642529,9.58,144.89,144.88,3.4513]
[1727134642829,13.71125915,144.9,144.86,9.58]
[1727134643022,12.32385915,144.9,144.88,3.4511]
[1727134644126,13.0306,144.91,144.88,3.4511]
[1727134647630,3.4509,144.9,144.87,3.4514]
[1727134647825,9.58,144.88,144.83,9.58]
[1727134648031,9.58,144.86,144.82,9.58]
[1727134648230,9.58,144.86,144.85,3.452]
[1727134649625,9.58,144.87,144.85,3.452]
[1727134650730,9.58,144.87,144.84,3.4522]
[1727134652030,9.58,144.87,144.85,3.4519]
[1727134659030,9.58,144.86,144.78,4.74932468]
[1727134659237,9.58,144.84,144.79,9.58]
[1727134659442,9.58,144.84,144.82,3.4526]
[1727134659938,9.58,144.84,144.83,3.4524]
[1727134664942,9.58,144.86,144.84,3.4522]
[1727134665247,9.58,144.86,144.81,9.58]
[1727134666249,9.58,144.86,144.82,9.58]
[1727134666747,9.58,144.86,144.85,3.452]
[1727134670256,1.3663,144.91,144.85,9.58]
[1727134670554,9.58,144.9,144.85,9.58]
[1727134671846,9.58,144.9,144.89,3.4509]
[1727134674850,9.58,144.9,144.85,9.58]
[1727134675047,9.58,144.89,144.85,9.58]
[1727134675452,9.58,144.89,144.88,3.4511]
[1727134677852,9.58,144.89,144.84,2.6917]
[1727134678055,9.58,144.88,144.84,2.6917]
[1727134679054,9.58,144.88,144.84,12.2717]
[1727134679358,75.1976577,144.93,144.87,3.4513]
[1727134679359,9.58,144.89,144.87,3.4513]
[1727134679557,9.58,144.89,144.84,12.2717]
[1727134680552,9.58,144.89,144.85,9.58]
[1727134680856,9.58,144.89,144.88,3.4513]
[1727134681056,75.1976577,144.93,144.85,9.58]
[1727134681360,9.58,144.91,144.9,3.4506]
[1727134681553,9.58,144.91,144.9,3.39061307]
[1727134683859,12.32367232,144.94,144.88,9.58]
[1727134684158,9.58,144.93,144.88,9.58]
[1727134684758,4.7748,144.95,144.92,3.4501]
[1727134684957,9.58,144.93,144.92,3.4501]
[1727134686257,9.58,144.93,144.91,3.4505]
[1727134686457,9.58,144.91,144.86,9.58]
[1727134686661,9.58,144.9,144.86,9.58]
[1727134686859,9.58,144.9,144.89,3.451]
[1727134688663,9.58,144.92,144.88,9.58]
[1727134689261,9.58,144.92,144.91,3.4505]
[1727134689456,1.3251,144.95,144.89,9.58]
[1727134689657,9.58,144.94,144.89,9.58]
[1727134689864,9.58,144.93,144.86,1.3944]
[1727134690063,9.58,144.93,144.88,9.58]
[1727134690463,9.58,144.93,144.91,3.4504]
[1727134698275,4.7748,144.95,144.88,9.58]
[1727134698276,1.3251,144.95,144.88,9.58]
[1727134698472,9.58,144.93,144.88,9.58]
[1727134700568,2.784,145.0,144.89,9.58]
[1727134700877,9.58,144.95,144.89,9.58]
[1727134701478,4.2048,145.0,144.91,9.58]
[1727134701776,9.58,144.96,144.91,9.58]
[1727134702882,9.58,144.96,144.94,3.4497]
[1727134703981,3.4489,144.98,144.94,3.4497]
[1727134704183,9.58,144.95,144.94,3.4497]
[1727134704684,3.4489,144.98,144.94,3.4497]
[1727134704883,9.58,144.95,144.94,3.4497]
[1727134705886,3.4489,144.98,144.86,1.3944]
[1727134705887,9.58,144.96,144.95,3.4494]
[1727134706688,4.2048,145.0,144.95,3.4494]
[1727134706882,9.58,144.96,144.95,3.4494]
[1727134707080,3.4487,144.99,144.92,9.58]
[1727134707386,4.2048,145.0,144.92,9.58]
[1727134707588,9.58,144.97,144.95,3.4494]
[1727134707779,3.4487,144.99,144.95,3.4494]
[1727134708088,9.58,144.96,144.95,3.4494]
[1727134708488,9.58,144.96,144.94,3.4498]
[1727134712587,3.449,144.98,144.94,3.4498]
[1727134712788,9.58,144.96,144.94,3.4498]
[1727134713383,3.449,144.98,144.94,3.4498]
[1727134713583,9.58,144.96,144.94,3.4498]
[1727134715999,3.449,144.98,144.94,3.4498]
[1727134716201,9.58,144.96,144.94,3.4498]
[1727134716600,9.50555011,144.96,144.94,3.4498]
[1727134722011,9.58,144.95,144.93,3.45]
[1727134722202,9.58,144.95,144.9,9.58]
[1727134722503,9.58,144.95,144.94,3.4498]
[1727134727408,9.58,144.96,144.94,3.4498]
[1727134729406,9.58,144.97,144.92,9.58]
[1727134730810,9.58,144.97,144.95,3.4495]
[1727134731503,9.58,144.96,144.95,3.4495]
[1727134732209,2.8024,145.0,144.86,1.3944]
[1727134732411,9.58,144.91,144.86,1.3944]
[1727134732608,9.58,144.91,144.86,10.9744]
[1727134732804,1.3571,144.95,144.86,10.9744]
[1727134733205,1.3571,144.95,144.9,3.4508]
[1727134733206,9.58,144.92,144.9,3.4508]
[1727134734609,9.58,144.92,144.89,3.451]
[1727134738702,9.58,144.92,144.88,3.4512]
[1727134739211,9.58,144.91,144.88,3.4512]
[1727134739409,9.58,144.89,144.87,3.4515]
[1727134740115,9.58,144.88,144.86,3.4517]
[1727134740506,9.58,144.9,144.85,10.9289]
[1727134740701,9.58,144.9,144.87,3.4513]
[1727134741408,3.4506,144.91,144.87,3.4513]
[1727134741613,9.58,144.9,144.88,3.4512]
[1727134744817,9.58,144.89,144.86,3.4516]
[1727134746308,9.58,144.89,144.87,3.4514]
[1727134750414,9.58,144.9,144.88,3.4511]
[1727134752013,9.58,144.91,144.9,3.4508]
[1727134752211,9.58,144.92,144.9,3.4508]
[1727134754206,13.0303,144.92,144.84,1.3515]
[1727134754413,9.58,144.9,144.85,9.58]
[1727134755019,9.58,144.9,144.87,3.4513]
[1727134755214,9.58,144.9,144.85,9.58]
[1727134756419,9.58,144.9,144.88,3.451]
[1727134759323,9.58,144.9,144.89,3.451]
[1727134759823,9.58,144.91,144.89,3.451]
[1727134760724,9.58,144.91,144.9,3.4508]
[1727134760923,1.3571,144.95,144.87,9.58]
[1727134761225,9.58,144.93,144.88,9.58]
[1727134761922,9.58,144.93,144.91,3.4504]
[1727134763524,9.58,144.93,144.88,9.58]
[1727134763525,9.58,144.94,144.92,3.4503]
[1727134764528,9.58,144.93,144.87,9.58]
[1727134764829,9.58,144.91,144.87,9.58]
[1727134765733,9.58,144.91,144.86,9.58]
[1727134766429,9.58,144.91,144.89,3.4508]
[1727134773043,9.58,144.91,144.9,3.4508]
[1727134780043,9.58,144.91,144.85,1.453]
[1727134780346,9.58,144.87,144.78,1.4393]
[1727134780534,9.58,144.87,144.81,9.58]
[1727134780739,9.58,144.86,144.78,4.2536]
[1727134780938,9.58,144.86,144.81,9.58]
[1727134781240,9.58,144.84,144.79,9.58]
[1727134781842,9.58,144.85,144.79,9.58]
[1727134782244,9.58,144.85,144.81,9.58]
[1727134782437,9.58,144.87,144.81,9.58]
[1727134782640,9.58,144.87,144.82,90.74268971]
[1727134783138,9.58,144.87,144.85,3.4519]
[1727134783540,6.92260817,144.89,144.85,3.4519]
[1727134783741,9.58,144.87,144.85,3.4519]
[1727134789854,9.58,144.86,144.85,3.4519]
[1727134790352,9.58,144.86,144.84,3.4521]
[1727134791648,9.58,144.85,144.83,3.4524]
[1727134793446,9.58,144.86,144.83,3.4524]
[1727134793656,9.58,144.86,144.84,3.4522]
[1727134793952,9.58,144.86,144.81,9.58]
[1727134794747,9.58,144.86,144.83,3.4524]
[1727134797460,9.58,144.86,144.84,3.4521]
[1727134800659,9.58,144.86,144.81,9.58]
[1727134800660,9.58,144.86,144.85,3.452]
[1727134800850,1.4564,144.9,144.84,9.58]
[1727134801055,1.352,144.92,144.87,3.4513]
[1727134801056,9.58,144.89,144.87,3.4513]
[1727134803756,3.4502,144.93,144.89,3.451]
[1727134803959,9.58,144.91,144.89,3.451]
[1727134805064,9.58,144.9,144.89,3.451]
[1727134807264,3.43991578,144.93,144.85,9.58]
[1727134807462,75.1845294,144.95,144.9,3.4506]
[1727134807662,9.58,144.92,144.88,9.58]
[1727134809166,9.58,144.92,144.91,3.4505]
[1727134811060,3.4494,144.96,144.92,3.4503]
[1727134811264,9.58,144.93,144.92,3.4503]
[1727134811569,9.58,144.93,144.88,9.58]
[1727134811866,9.58,144.93,144.91,3.4504]
[1727134812866,9.58,144.93,144.92,3.4503]
[1727134813861,9.58,144.93,144.91,3.4505]
[1727134815162,9.58,144.93,144.85,1.343]
[1727134815163,1.4308,145.0,144.89,9.58]
[1727134815368,1.4308,145.0,144.92,9.58]
[1727134815570,9.58,144.97,144.92,9.58]
[1727134815776,9.58,144.96,144.92,9.58]
[1727134817870,9.58,144.96,144.95,3.4496]
[1727134818170,9.58,144.96,144.9,12.2864]
[1727134818372,9.58,144.95,144.9,12.2864]
[1727134818962,9.58,144.95,144.93,3.4499]
[1727134819972,4.1896,145.0,144.9,1.3254]
[1727134819973,9.58,144.94,144.9,1.3254]
[1727134820461,9.58,144.95,144.91,3.4504]
[1727134820666,9.58,144.95,144.9,10.9054]
[1727134822875,9.58,144.95,144.93,3.45]
[1727134823583,3.4492,144.97,144.93,3.45]
[1727134823872,9.58,144.95,144.93,3.45]
[1727134828180,9.58,144.95,144.92,3.4502]
[1727134828682,9.58,144.95,144.9,10.9054]
[1727134828882,9.58,144.95,144.92,3.4502]
[1727134829181,9.58,144.94,144.92,3.4502]
[1727134832676,9.58,144.94,144.87,1.448]
[1727134832677,9.58,144.93,144.87,1.448]
[1727134832976,4.1896,145.0,144.87,1.448]
[1727134832977,9.58,144.91,144.87,1.448]
[1727134833177,9.58,144.91,144.9,3.4508]
[1727134837979,3.51142403,144.93,144.9,3.4508]
[1727134838181,9.58,144.91,144.9,3.4508]
[1727134838381,9.58,144.91,144.89,3.4509]
[1727134839283,9.58,144.91,144.9,3.4508]
[1727134839887,75.17001578,144.98,144.91,3.4505]
[1727134840182,9.58,144.94,144.89,9.58]
[1727134840985,9.58,144.93,144.89,9.58]
[1727134841287,9.58,144.93,144.91,3.4504]
[1727134847785,9.58,144.94,144.87,1.448]
[1727134847986,9.58,144.95,144.89,9.58]
[1727134848794,9.58,144.95,144.93,3.4499]
[1727134850890,9.58,144.95,144.9,9.58]
[1727134851096,9.58,144.96,144.9,9.58]
[1727134851796,9.58,144.96,144.94,3.4498]
[1727134853085,4.1896,145.0,144.95,3.4496]
[1727134853401,9.58,144.97,144.93,9.58]
[1727134853898,1.4276,145.0,144.94,9.58]
[1727134854098,9.58,144.99,144.94,9.58]
[1727134854398,9.58,144.99,144.97,3.449]
[1727134854690,1.4276,145.0,144.97,3.449]
[1727134854895,1.4276,145.0,144.94,9.58]
[1727134854896,9.58,144.99,144.94,9.58]
[1727134856791,9.58,144.99,144.96,3.4491]
[1727134857490,9.58,144.99,144.98,3.4489]
[1727134857990,9.58,144.99,144.97,3.449]
[1727134858586,9.58,144.99,144.96,3.4493]
[1727134858792,9.58,144.97,144.96,3.4493]
[1727134859594,9.58,144.97,144.95,3.4495]
[1727134859801,9.58,144.97,144.93,10.9885]
[1727134859802,9.58,144.96,144.93,1.4085]
[1727134860899,9.58,144.96,144.95,3.4495]
[1727134861795,9.58,144.96,144.94,3.4498]
[1727134861995,9.58,144.96,144.92,2.6729]
[1727134861996,9.58,144.96,144.92,1.3384]
[1727134863098,9.58,144.96,144.94,3.4497]
[1727134864407,3.4485,145.0,144.95,3.4494]
[1727134864602,9.58,144.98,144.95,3.4494]
[1727134864894,3.4485,145.0,144.95,3.4494]
[1727134865100,9.58,144.97,144.95,3.4494]
[1727134874611,9.58,144.99,144.96,3.4493]
[1727134878408,9.58,144.99,144.97,3.4491]
[1727134878806,9.58,144.99,144.92,1.3384]
[1727134879011,9.58,144.95,144.94,3.4498]
[1727134879313,9.58,144.95,144.91,10.9916]
[1727134881111,9.58,144.95,144.93,3.4499]
[1727134886013,9.58,144.95,144.91,10.9916]
[1727134886014,9.58,144.95,144.92,3.4502]
[1727134893111,9.58,144.95,144.93,3.45]
[1727134894516,4.79746831,145.04,144.93,9.58]
[1727134894817,9.58,144.98,144.93,9.58]
[1727134895221,9.58,144.98,144.95,3.4494]
[1727134897016,9.58,144.96,144.94,3.4497]
[1727134901221,9.58,144.95,144.93,3.4499]
[1727134906224,9.58,144.94,144.88,1.381]
[1727134906415,9.58,144.93,144.88,1.381]
[1727134906615,9.58,144.93,144.88,10.961]
[1727134906816,9.58,144.93,144.91,3.4504]
[1727134907931,9.58,144.94,144.92,3.4503]
[1727134913429,9.58,144.95,144.92,3.4503]
[1727134914220,9.58,144.95,144.9,9.58]
[1727134914429,13.60838712,145.03,144.92,9.58]
[1727134914635,9.58,144.97,144.92,9.58]
[1727134915529,9.58,144.96,144.94,3.4496]
[1727134917024,9.58,144.96,144.95,3.4496]
[1727134918234,9.58,144.96,144.88,1.381]
[1727134918424,9.58,144.96,144.91,9.58]
[1727134919438,9.58,144.96,144.93,3.4499]
[1727134920029,9.58,144.96,144.94,3.4498]
[1727134920437,3.4488,144.99,144.94,3.4498]
[1727134920626,9.58,144.97,144.94,3.4498]
[1727134921025,9.58,144.97,144.95,3.4495]
[1727134926431,3.4484,145.01,144.96,3.4493]